bitfinex/quotes_ETHUSD_20260111
["timestamp","ask_amount","ask_price","bid_price","bid_amount"]
[1768126796258,0.42359139,3106.9,3106.4,0.92993423]
[1768126797044,0.42359139,3106.9,3106.7,0.001]
[1768126798254,0.04023432,3106.8,3106.7,0.001]
[1768126798659,0.42359139,3106.9,3106.7,0.001]
[1768126800164,0.46382441,3106.9,3106.7,0.001]
[1768126800754,0.42359139,3106.9,3106.7,0.001]
[1768126801119,0.04023432,3106.8,3106.4,0.98401477]
[1768126801456,0.00081688,3106.9,3106.4,0.98401477]
[1768126802852,0.0410499,3106.9,3106.4,0.98401477]
[1768126803053,0.0410499,3106.9,3106.4,0.001]
[1768126803255,0.46076854,3106.9,3106.4,0.001]
[1768126804753,3.67941395,3106.9,3106.4,0.001]
[1768126808465,0.46076854,3106.9,3106.4,0.001]
[1768126808666,0.46076854,3106.9,3106.2,0.9798245]
[1768126809367,0.253,3106.8,3106.2,0.9798245]
[1768126809563,0.04023561,3106.7,3106.2,0.9798245]
[1768126814481,0.03823562,3106.7,3106.2,0.9798245]
[1768126815941,1.01709036,3106.7,3106.1,0.0008024]
[1768126816267,4.23594288,3106.7,3106.1,0.0008024]
[1768126816451,1.01709036,3106.7,3106.1,0.0008024]
[1768126816651,0.89707801,3106.6,3106.1,0.0008024]
[1768126820371,0.89707801,3106.6,3106.4,0.001]
[1768126820573,0.89707801,3106.6,3106.1,0.0008024]
[1768126828182,4.11603668,3106.6,3106.1,0.0008024]
[1768126828386,0.89707801,3106.6,3106.1,0.0008024]
[1768126828555,0.19141684,3106.5,3106.1,0.0008024]
[1768126831592,0.19141684,3106.5,3106.1,0.95613133]
[1768126831887,0.89707801,3106.6,3106.4,0.001]
[1768126832076,0.89707801,3106.6,3106.1,0.95613133]
[1768126834796,0.03823562,3106.7,3106.1,0.95613133]
[1768126837588,3.25709912,3106.7,3106.1,0.95613133]
[1768126843472,3.25709912,3106.7,3106.4,0.001]
[1768126843671,3.25709912,3106.7,3106.1,0.95613133]
[1768126843891,0.002,3106.4,3106.1,0.95613133]
[1768126864380,0.002,3106.4,3106.1,0.0008024]
[1768126884194,0.002,3106.4,3106.1,0.99092932]
[1768126884395,0.002,3106.7,3106.1,0.99092932]
[1768126884697,0.48918685,3106.7,3106.1,0.99092932]
[1768126890434,0.48918685,3106.7,3106.4,0.001]
[1768126890735,0.002,3106.4,3106.1,0.99092932]
[1768126890914,0.002,3106.7,3106.1,0.99092932]
[1768126899145,0.04031276,3106.7,3106.1,0.99092932]
[1768126902213,0.002,3106.7,3106.4,0.9408222]
[1768126912030,0.253,3106.8,3106.4,0.9408222]
[1768126915049,0.002,3106.7,3106.4,0.9408222]
[1768126924168,0.002,3106.7,3106.4,0.001]
[1768126993318,0.002,3106.7,3106.4,0.99023628]
[1768127006158,0.002,3106.7,3106.5,0.98923628]
[1768127006327,0.002,3106.7,3106.5,1.02142684]
[1768127013663,0.002,3106.7,3106.5,0.98923628]
[1768127017770,0.002,3106.7,3106.6,0.03218953]
[1768127022273,0.253,3106.8,3106.6,0.94110481]
[1768127026668,0.253,3106.8,3106.6,0.03218953]
[1768127028105,0.253,3106.8,3106.5,0.03219056]
[1768127032410,0.253,3106.8,3106.4,4.12903789]
[1768127033484,0.253,3106.8,3106.4,0.90991528]
[1768127034208,0.253,3106.8,3106.4,0.001]
[1768127035486,1.20382319,3106.8,3106.4,0.001]
[1768127036197,0.95082319,3106.7,3106.4,0.001]
[1768127036400,0.95082319,3106.7,3106.1,0.0008024]
[1768127040329,0.253,3106.8,3106.1,0.94437888]
[1768127040502,0.253,3106.8,3106.2,0.94357648]
[1768127045001,0.253,3106.8,3106.5,0.001]
[1768127052231,5.71736291,3106.8,3106.1,0.9667822]
[1768127052539,0.03831276,3106.7,3106.1,0.0008024]
[1768127052722,0.89744276,3106.6,3106.1,0.0008024]
[1768127056322,0.89744276,3106.6,3106.4,0.001]
[1768127056519,0.89744276,3106.6,3106.1,0.0008024]
[1768127056520,0.002,3106.5,3106.1,0.0008024]
[1768127060034,0.9849127,3106.5,3106.1,0.0008024]
[1768127060235,0.002,3106.5,3106.1,0.0008024]
[1768127060459,0.4262124,3106.5,3106.1,0.0008024]
[1768127062354,9.11044879,3106.5,3105.8,0.98283782]
[1768127062553,10.07660902,3106.5,3105.8,0.98283782]
[1768127063255,6.85753794,3106.5,3105.8,0.98283782]
[1768127064460,5.87462524,3106.5,3105.8,0.98283782]
[1768127064663,0.90936318,3106.4,3105.8,0.98283782]
[1768127064831,0.253,3106.3,3105.8,0.98283782]
[1768127069150,0.253,3106.3,3106.1,0.001]
[1768127069352,0.002,3106.2,3105.8,0.001]
[1768127071475,0.002,3106.2,3105.6,1.94799805]
[1768127071476,0.9829127,3106.1,3105.4,0.98183782]
[1768127071673,0.54663629,3106.0,3105.4,0.98183782]
[1768127077773,0.54663629,3106.0,3105.3,0.96623492]
[1768127077774,1.45791529,3106.0,3105.3,0.96623492]
[1768127078677,0.911279,3105.9,3105.3,0.96623492]
[1768127080805,0.911279,3105.9,3105.7,0.001]
[1768127081605,0.911279,3105.9,3105.3,0.96623492]
[1768127082907,0.253,3105.8,3105.2,0.00080264]
[1768127086435,1.164279,3105.8,3105.2,0.00080264]
[1768127086601,0.253,3105.8,3105.2,0.90533897]
[1768127087203,0.253,3105.8,3105.2,0.00080264]
[1768127087411,1.164279,3105.8,3105.2,0.00080264]
[1768127087732,0.911279,3105.7,3105.2,0.00080264]
[1768127091737,0.54602566,3105.8,3105.2,0.00080264]
[1768127091941,1.45730466,3105.8,3105.2,0.00080264]
[1768127092742,1.45730466,3105.8,3105.5,0.001]
[1768127094844,1.4189919,3105.8,3105.5,0.001]
[1768127097345,0.18905629,3105.7,3105.5,0.001]
[1768127102679,0.29131276,3105.8,3105.5,0.001]
[1768127116958,0.29131276,3105.8,3105.2,0.90533897]
[1768127117547,1.28573674,3105.8,3105.2,0.00080264]
[1768127117757,3.51111243,3105.8,3105.2,0.9520111]
[1768127118457,0.95120846,3105.7,3105.2,0.9520111]
[1768127118652,0.55,3105.2,3104.6,3.22177285]
[1768127118986,0.54800001,3105.2,3104.7,0.95120846]
[1768127120651,0.80100001,3105.2,3104.7,0.95120846]
[1768127120849,0.96652131,3105.1,3104.7,0.95120846]
[1768127121183,0.80100001,3105.2,3104.7,0.95120846]
[1768127121375,2.15434397,3105.2,3104.7,0.95120846]
[1768127123154,2.15434397,3105.2,3104.6,0.00080232]
[1768127123355,0.99442398,3105.1,3104.6,0.00080232]
[1768127123775,0.99242399,3105.1,3104.6,0.00080232]
[1768127124188,1.20420846,3105.2,3104.6,0.95201078]
[1768127126958,1.6504926,3105.2,3104.6,0.95201078]
[1768127127502,1.6504926,3105.2,3104.9,0.001]
[1768127127698,1.6504926,3105.2,3104.6,0.00080232]
[1768127127882,1.6504926,3105.2,3104.6,0.95201078]
[1768127128476,1.68880536,3105.2,3104.6,0.95201078]
[1768127131507,4.90921679,3105.2,3104.6,0.95201078]
[1768127131673,0.49092168,3105.1,3104.6,0.95201078]
[1768127132570,0.03831276,3105.0,3104.6,0.95201078]
[1768127133702,0.03831276,3105.0,3104.6,0.00080232]
[1768127133890,0.97860015,3105.0,3104.6,0.00080232]
[1768127137325,1.94520554,3105.0,3104.6,0.00080232]
[1768127137624,0.94028739,3104.9,3104.6,0.00080232]
[1768127137992,1.06916935,3104.9,3104.6,0.00080232]
[1768127138196,1.06916935,3104.9,3104.2,0.00180224]
[1768127138396,0.12888196,3104.9,3104.3,0.91434019]
[1768127142430,0.03831276,3104.8,3104.3,0.91434019]
[1768127143738,0.03631277,3104.8,3104.3,0.91434019]
[1768127143931,0.253,3104.7,3104.3,0.91434019]
[1768127150948,0.253,3104.7,3104.6,0.001]
[1768127151137,0.253,3104.7,3104.2,0.00180224]
[1768127151332,0.253,3104.7,3104.2,0.91614243]
[1768127158071,0.25100001,3104.7,3104.2,0.91614243]
[1768127159580,1.19722303,3105.0,3104.2,0.91614243]
[1768127159752,0.253,3104.9,3104.2,0.91614243]
[1768127159950,0.03631277,3104.8,3104.2,0.91614243]
[1768127162485,0.03631277,3104.8,3104.5,0.001]
[1768127166688,0.253,3104.9,3104.5,0.001]
[1768127167267,0.72007347,3104.9,3104.5,0.001]
[1768127172290,0.9807096,3104.8,3104.2,3.22324235]
[1768127172488,0.72007347,3104.9,3104.3,0.95954699]
[1768127185907,0.002,3104.6,3104.3,0.95954699]
[1768127192423,0.255,3104.9,3104.3,0.95954699]
[1768127193316,0.255,3104.9,3104.3,4.18086798]
[1768127193522,0.255,3104.9,3104.4,0.95954699]
[1768127197822,0.002,3104.6,3104.4,0.95954699]
[1768127198823,0.255,3104.9,3104.4,0.95954699]
[1768127199323,0.255,3104.9,3104.2,4.15148625]
[1768127200026,0.255,3104.9,3104.3,0.92828975]
[1768127209246,0.255,3104.9,3104.6,0.001]
[1768127209549,0.002,3104.6,3104.3,0.92828975]
[1768127216350,0.002,3104.6,3104.2,0.00180224]
[1768127216545,0.002,3104.6,3104.2,0.93009199]
[1768127217954,0.002,3104.6,3104.2,4.15148569]
[1768127221368,0.002,3104.6,3104.5,0.001]
[1768127231278,1.16031173,3104.9,3104.5,0.001]
[1768127232693,0.97049908,3104.8,3104.2,0.00180224]
[1768127232847,1.00681185,3104.8,3104.2,0.00180224]
[1768127233048,0.97049908,3104.6,3104.2,0.00180224]
[1768127233247,1.00681185,3104.6,3104.2,0.00180224]
[1768127233447,1.00761409,3104.6,3104.0,0.00080248]
[1768127234684,4.22870014,3104.6,3104.0,0.00080248]
[1768127234861,0.97049908,3104.5,3104.0,0.00080248]
[1768127235056,0.253,3104.4,3104.0,0.00080248]
[1768127237998,0.25100001,3104.4,3104.0,0.00080248]
[1768127242003,0.97049908,3105.1,3104.3,0.9228659]
[1768127242205,0.253,3104.8,3104.3,0.9228659]
[1768127244419,0.253,3104.8,3104.3,0.9238659]
[1768127248714,0.25100001,3104.8,3104.3,0.9238659]
[1768127250818,0.24900002,3104.8,3104.3,0.9238659]
[1768127262552,0.24900002,3104.8,3104.3,0.001]
[1768127265253,4.22822837,3105.0,3104.3,0.001]
[1768127265437,0.253,3104.8,3104.3,0.001]
[1768127268361,0.253,3104.8,3104.6,0.001]
[1768127275468,1.20287187,3104.8,3104.6,0.001]
[1768127275768,1.64913199,3104.8,3104.6,0.001]
[1768127277365,0.69926012,3104.8,3104.6,0.001]
[1768127277569,0.253,3104.8,3104.6,0.001]
[1768127320761,0.002,3104.9,3104.6,0.001]
[1768127320932,0.255,3104.9,3104.6,0.001]
[1768127321870,0.002,3104.9,3104.6,0.001]
[1768127322033,0.255,3104.9,3104.6,0.001]
[1768127327373,0.002,3104.9,3104.7,0.99960741]
[1768127327734,0.002,3104.9,3104.6,0.001]
[1768127334965,0.002,3104.9,3104.6,1.00060741]
[1768127337874,0.00080232,3105.0,3104.8,0.99960741]
[1768127338075,0.253,3105.4,3104.8,0.99960741]
[1768127343877,3.25713656,3105.6,3104.8,0.99960741]
[1768127344173,0.253,3105.5,3104.8,0.99960741]
[1768127348879,0.002,3105.2,3104.8,0.99960741]
[1768127350211,0.97884506,3106.2,3105.3,0.98103851]
[1768127350489,1.26615783,3106.1,3105.3,0.98103851]
[1768127350677,1.71491132,3106.1,3105.3,0.98103851]
[1768127351347,1.67859855,3106.1,3105.3,0.98103851]
[1768127351548,1.42559855,3106.1,3105.3,0.98103851]
[1768127351764,0.253,3106.0,3105.3,0.98103851]
[1768127352356,0.253,3106.0,3105.3,4.20128945]
[1768127360898,0.002,3105.7,3105.3,4.20128945]
[1768127363803,0.002,3105.7,3105.3,7.42159022]
[1768127364298,0.002,3105.7,3105.3,4.20128945]
[1768127365610,0.002,3105.7,3105.4,0.98103851]
[1768127368612,0.002,3105.7,3105.3,7.67459022]
[1768127370119,0.022,3105.7,3105.3,7.67459022]
[1768127373721,0.022,3105.7,3105.6,0.001]
[1768127403954,0.02000001,3105.7,3105.6,0.001]
[1768127410264,0.01800002,3105.7,3105.6,0.001]
[1768127416967,0.01600003,3105.7,3105.6,0.001]
[1768127424060,0.01400004,3105.7,3105.6,0.001]
[1768127430884,0.97877897,3105.7,3105.6,0.001]
[1768127431502,0.97677898,3105.7,3105.6,0.001]
[1768127438904,0.97477899,3105.7,3105.6,0.001]
[1768127452320,0.01000006,3105.7,3105.6,0.001]
[1768127453284,0.01000006,3105.7,3105.2,0.00080272]
[1768127465230,0.01000006,3105.7,3105.5,0.001]
[1768127488548,0.01000006,3105.7,3105.2,0.00080272]
[1768127496758,0.01000006,3105.7,3105.2,0.9939114]
[1768127497258,0.01000006,3105.7,3105.2,4.21423781]
[1768127499756,0.01000006,3105.7,3105.5,0.001]
[1768127502951,0.01000006,3105.7,3105.2,0.00080272]
[1768127503159,0.94509574,3105.7,3105.2,0.00080272]
[1768127504255,0.94509574,3105.7,3105.2,3.2211992]
[1768127506760,0.94509574,3105.7,3105.2,0.00080272]
[1768127511092,0.01000006,3105.7,3105.2,0.00080272]
[1768127511383,0.04631283,3105.7,3105.5,0.001]
[1768127512294,0.01000006,3105.7,3105.5,0.001]
[1768127524077,5.43829564,3105.7,3105.2,0.00080272]
[1768127524302,5.43829564,3105.7,3104.3,3.22226408]
[1768127524303,0.94293905,3105.0,3104.3,0.001]
[1768127524470,0.94293905,3104.7,3104.0,0.00080248]
[1768127525300,0.94293905,3104.4,3103.6,3.22205872]
[1768127525498,0.00080248,3104.4,3104.1,0.95741159]
[1768127525796,0.00080248,3104.4,3104.1,4.17893843]
[1768127526001,0.00080248,3104.4,3104.2,0.95741159]
[1768127526572,0.00080248,3104.4,3104.2,0.989626]
[1768127526771,0.00080248,3104.4,3104.3,0.95741159]
[1768127528234,0.0008024,3105.0,3104.4,0.96883816]
[1768127530379,0.0008024,3105.0,3104.6,0.96883816]
[1768127532725,0.0008024,3105.0,3104.7,0.96883816]
[1768127534552,0.0028024,3105.0,3104.7,0.96883816]
[1768127538018,0.0028024,3105.0,3104.7,4.18976048]
[1768127542182,0.253,3105.5,3104.9,0.96883816]
[1768127543383,0.253,3105.5,3104.7,4.18976048]
[1768127543893,4.25017258,3105.6,3104.7,4.18976048]
[1768127544103,4.50317258,3105.6,3104.7,4.18976048]
[1768127544502,1.28317986,3105.6,3104.7,4.18976048]
[1768127546522,0.99306437,3105.5,3104.7,4.18976048]
[1768127548315,0.99306437,3105.5,3104.7,0.96883816]
[1768127548518,0.03631277,3105.4,3104.7,0.96883816]
[1768127548719,0.99306437,3105.3,3104.6,0.00080248]
[1768127549416,0.99306437,3105.3,3104.6,3.22182413]
[1768127550197,0.99306437,3105.3,3104.7,3.22091448]
[1768127550728,0.99306437,3105.3,3104.6,4.19062052]
[1768127557708,0.99306437,3105.3,3104.9,0.001]
[1768127558209,0.002,3105.0,3104.9,0.001]
[1768127589180,0.00080272,3105.6,3105.0,0.96982519]
[1768127589364,0.00080272,3105.6,3105.1,0.96982519]
[1768127591156,0.00080272,3105.6,3105.2,3.22040448]
[1768127592676,0.002,3105.3,3105.1,4.19027819]
[1768127596988,0.00280272,3105.6,3105.1,7.41078638]
[1768127598581,0.00280272,3105.6,3105.2,0.96982519]
[1768127598885,0.00280272,3105.6,3105.3,3.22030077]
[1768127600658,0.00280272,3105.6,3105.0,0.96982519]
[1768127604091,0.00280272,3105.6,3105.1,7.41084157]
[1768127606494,0.00280272,3105.6,3105.3,0.001]
[1768127622647,0.93540025,3106.0,3105.4,0.99997192]
[1768127622648,0.002,3106.0,3105.4,0.99997192]
[1768127622849,0.002,3106.0,3105.6,0.99997192]
[1768127623319,0.002,3106.0,3105.7,6.43977202]
[1768127626854,0.002,3106.0,3105.7,0.99997192]
[1768127628233,0.0028024,3106.5,3105.9,0.99997192]
[1768127630257,1e-08,3106.3,3106.0,0.99997192]
[1768127630756,0.0028024,3106.5,3106.1,0.99997192]
[1768127631067,0.0028024,3106.5,3106.2,0.99997192]
[1768127631560,0.0028024,3106.5,3106.0,0.99997192]
[1768127632336,0.0028024,3106.5,3106.1,3.21947136]
[1768127633367,0.0028024,3106.5,3106.0,3.21955526]
[1768127633568,0.0028024,3106.5,3106.0,6.43913027]
[1768127637181,0.0028024,3106.5,3106.0,7.43910219]
[1768127640983,0.0028024,3106.5,3106.2,4.21933963]
[1768127641389,0.0028024,3106.5,3106.2,6.43873542]
[1768127641871,0.0028024,3106.5,3106.2,3.21936771]
[1768127642076,0.93620265,3106.5,3105.5,3.22007527]
[1768127642266,0.93340025,3106.3,3105.3,0.001]
[1768127642456,0.93340025,3106.0,3105.3,0.001]
[1768127645270,4.14468594,3106.3,3105.3,0.001]
[1768127645475,0.253,3106.1,3105.3,0.001]
[1768127645791,0.92537956,3106.0,3105.3,0.001]
[1768127646484,0.92537956,3106.0,3105.3,3.22130077]
[1768127648271,0.94666475,3106.2,3105.4,1.02438844]
[1768127648673,0.94666475,3106.4,3105.4,1.02438844]
[1768127649462,0.98297752,3106.4,3105.3,6.44160154]
[1768127654801,0.98297752,3106.4,3105.6,0.001]
[1768127665528,1.19966475,3106.3,3105.6,0.99318647]
[1768127665902,0.94666475,3106.2,3105.6,0.001]
[1768127666102,0.98297752,3106.2,3105.6,0.001]
[1768127666623,0.98297752,3106.2,3105.9,0.001]
[1768127667415,0.94666475,3106.2,3105.9,0.001]
[1768127669319,0.98297752,3106.2,3105.9,0.001]
[1768127672504,0.94666475,3106.2,3105.9,0.001]
[1768127679539,0.253,3106.3,3105.9,0.001]
[1768127679842,1.19216167,3106.3,3105.9,0.001]
[1768127684246,0.253,3106.3,3105.9,0.001]
[1768127688165,0.25100001,3106.3,3105.9,0.001]
[1768127689354,0.25100001,3106.3,3106.2,0.001]
[1768127690848,0.97827684,3106.5,3106.2,0.001]
[1768127691072,0.253,3106.4,3106.2,0.001]
[1768127691938,0.253,3106.3,3106.2,0.001]
[1768127695474,0.25100001,3106.3,3106.2,0.001]
[1768127701873,0.0028024,3106.5,3106.2,0.90577187]
[1768127702068,0.2558024,3106.5,3106.2,0.90577187]
[1768127702450,0.0028024,3106.5,3106.2,0.90577187]
[1768127702756,0.002,3106.8,3106.6,0.90477187]
[1768127702958,0.002,3106.8,3106.3,0.90477187]
[1768127703256,0.03831277,3106.8,3106.3,0.90477187]
[1768127703458,0.97747444,3106.8,3106.2,0.001]
[1768127709785,0.002,3106.8,3106.2,0.97275544]
[1768127711563,0.002,3106.8,3106.4,0.97175544]
[1768127712887,0.002,3106.8,3106.5,0.97275544]
[1768127717786,0.002,3106.8,3106.5,0.001]
[1768127737428,0.95432555,3106.8,3106.5,0.001]
[1768127737632,0.03631277,3106.7,3106.5,0.001]
[1768127747726,0.95432555,3106.8,3106.5,0.001]
[1768127758160,0.002,3106.8,3106.5,0.001]
[1768127784496,0.002,3106.8,3106.5,0.95302375]
[1768127784696,0.002,3106.8,3106.5,0.001]
[1768127787302,0.98352378,3107.2,3106.5,0.001]
[1768127787512,0.00080176,3107.5,3107.0,0.95202375]
[1768127788304,0.00080176,3107.5,3107.1,3.21843519]
[1768127789175,0.00080176,3107.5,3107.2,0.95202375]
[1768127793621,0.00280176,3107.5,3107.2,0.95202375]
[1768127793811,0.00280176,3107.5,3107.4,0.95741498]
[1768127795328,0.00280176,3107.5,3107.2,0.95741498]
[1768127807526,0.00280176,3107.5,3107.1,0.95741498]
[1768127809544,0.0019941,3107.4,3107.1,0.95741498]
[1768127814163,0.94266743,3107.4,3107.0,3.21853089]
[1768127815674,0.0019941,3107.4,3107.0,4.17594587]
[1768127817775,0.0019941,3107.4,3107.3,0.001]
[1768127818581,0.0019941,3107.4,3107.3,0.95841498]
[1768127823159,0.00280176,3107.5,3107.3,0.95841498]
[1768127832588,0.002,3107.8,3107.3,0.95841498]
[1768127832589,0.002,3108.2,3107.7,0.96030179]
[1768127832761,0.94002014,3108.1,3107.7,0.00080216]
[1768127832961,0.9408223,3108.1,3107.3,0.001]
[1768127834187,0.94002014,3107.9,3107.3,0.001]
[1768127834985,0.94002014,3107.9,3107.1,0.00080184]
[1768127834986,0.94002014,3107.8,3107.1,0.00080184]
[1768127835214,0.94002014,3107.6,3107.1,0.00080184]
[1768127840893,0.94002014,3107.6,3107.4,0.001]
[1768127841204,0.94002014,3107.6,3107.1,0.00080184]
[1768127850687,0.94002014,3107.5,3106.7,4.17914886]
[1768127850917,0.94082198,3107.5,3106.7,4.17914886]
[1768127851289,0.94082198,3107.5,3106.8,0.96030179]
[1768127852818,0.94082198,3107.5,3107.4,0.001]
[1768127853121,0.94082198,3107.5,3106.8,0.96030179]
[1768127864305,0.94082198,3107.5,3107.1,0.001]
[1768127864306,0.00080184,3107.5,3107.1,0.001]
[1768127867537,0.00080184,3107.5,3106.7,0.93156763]
[1768127867742,1.8159956,3107.5,3106.7,0.93156763]
[1768127868339,0.81801303,3107.5,3106.7,0.93156763]
[1768127869239,4.03603539,3107.5,3106.7,0.93156763]
[1768127869430,0.81801303,3107.5,3106.7,0.93156763]
[1768127869632,1.8159956,3107.5,3106.7,0.93156763]
[1768127869838,0.99878441,3107.5,3106.7,0.93156763]
[1768127871138,0.99798257,3107.4,3106.5,0.93338532]
[1768127872837,3.21822804,3107.3,3106.5,0.93338532]
[1768127876249,3.21822804,3107.3,3106.8,0.001]
[1768127876425,0.002,3107.1,3106.8,0.001]
[1768127877333,0.3240228,3107.1,3106.8,0.001]
[1768127877517,0.3240228,3107.1,3106.6,0.93156763]
[1768127879327,0.002,3107.1,3106.6,0.93156763]
[1768127888560,0.002,3107.1,3106.8,0.001]
[1768127888761,0.002,3107.1,3106.6,0.93156763]
[1768127889137,0.002,3107.1,3106.5,0.00181769]
[1768127889968,0.98099154,3107.1,3106.5,0.00181769]
[1768127890184,0.74176548,3107.0,3106.5,0.00181769]
[1768127891963,3.9603067,3107.0,3106.5,0.00181769]
[1768127893687,0.74176548,3107.0,3106.5,0.00181769]
[1768127894076,3.96031645,3107.0,3106.5,0.92473749]
[1768127895390,0.74176548,3107.0,3106.5,0.92473749]
[1768127895697,3.21854063,3107.0,3106.5,0.84421623]
[1768127895998,0.00081769,3106.9,3106.3,0.9229198]
[1768127900091,0.00081769,3106.9,3106.6,0.001]
[1768127900287,0.002,3106.8,3106.2,0.001]
[1768127900482,0.44733499,3106.8,3106.2,0.001]
[1768127901887,0.44733499,3106.8,3106.2,0.9239198]
[1768127902097,0.002,3106.8,3106.2,0.9239198]
[1768127903871,0.002,3106.8,3106.4,0.9229198]
[1768127911979,0.002,3106.8,3106.5,0.001]
[1768127912180,0.002,3106.8,3106.4,0.9229198]
[1768127919884,0.002,3106.8,3106.2,0.94117559]
[1768127922432,0.73971722,3106.8,3106.2,0.94117559]
[1768127923725,3.95856147,3106.8,3106.2,0.94117559]
[1768127923927,3.95856147,3106.8,3106.5,0.001]
[1768127924126,0.002,3106.5,3106.2,0.94117559]
[1768127924334,0.002,3106.5,3106.2,0.001]
[1768127925626,0.002,3106.5,3106.2,0.94117559]
[1768127938941,0.002,3106.5,3106.2,0.001]
[1768127947139,0.002,3106.5,3106.2,0.99700158]
[1768127949018,0.002,3106.5,3106.2,0.001]
[1768127950514,0.99381976,3106.4,3106.2,0.001]
[1768127950713,0.99261976,3106.4,3106.2,0.001]
[1768127952040,0.002,3106.5,3106.2,0.001]
[1768127974664,0.002,3106.5,3106.2,0.93817642]
[1768127983978,0.98076505,3106.5,3106.2,0.001]
[1768127984151,0.002,3106.5,3106.2,0.001]
[1768127985760,0.002,3106.5,3106.2,0.93817642]
[1768127990403,0.002,3106.8,3106.2,0.93817642]
[1768127990577,0.44731594,3106.8,3106.2,0.93817642]
[1768127995299,0.44731594,3106.8,3106.5,0.001]
[1768127998788,0.002,3106.8,3106.5,0.93817642]
[1768127999366,0.25381769,3106.9,3106.5,0.93817642]
[1768128003192,0.25013916,3106.9,3106.5,0.93817642]
[1768128003401,0.25013916,3106.9,3106.5,0.93899492]
[1768128007229,0.002,3106.6,3106.5,0.93899492]
[1768128007429,0.25213916,3106.9,3106.5,0.93899492]
[1768128011623,0.25213916,3106.9,3106.5,0.0018185]
[1768128017427,0.002,3106.9,3106.5,0.99238342]
[1768128018829,0.002,3106.6,3106.5,0.99238342]
[1768128019123,0.002,3106.9,3106.6,0.99056492]
[1768128020027,0.002,3106.9,3106.6,4.2094853]
[1768128020922,0.002,3106.9,3106.7,0.99056492]
[1768128024937,0.002,3106.9,3106.8,0.99056492]
[1768128033450,0.002,3106.9,3106.6,0.99056492]
[1768128036046,0.002,3106.9,3106.7,0.91417522]
[1768128049476,0.002,3106.9,3106.5,0.0018185]
[1768128049773,0.002,3106.9,3106.5,0.91599372]
[1768128051268,0.002,3106.9,3106.5,4.13500722]
[1768128051474,0.002,3106.9,3106.6,0.91417522]
[1768128055777,0.002,3106.9,3106.6,4.1331046]
[1768128065698,0.002,3106.9,3106.5,6.43986665]
[1768128066062,0.002,3106.9,3106.5,7.37185438]
[1768128066607,0.002,3106.9,3106.5,4.15279757]
[1768128066608,0.002,3106.6,3106.5,4.15279757]
[1768128066807,0.002,3106.9,3106.5,7.37185438]
[1768128069093,0.002,3106.9,3106.5,4.15279757]
[1768128069274,0.002,3106.9,3106.5,7.37185438]
[1768128078602,0.002,3106.6,3106.5,4.15279757]
[1768128078802,0.002,3106.9,3106.5,7.37185438]
[1768128090011,0.002,3106.6,3106.5,4.15279757]
[1768128090307,0.002,3106.9,3106.5,4.15279757]
[1768128091009,0.002,3106.9,3106.5,7.37185438]
[1768128091913,0.002,3106.9,3106.5,6.43986665]
[1768128101128,0.002,3106.9,3106.5,7.37437769]
[1768128102430,0.002,3106.6,3106.5,4.15532088]
[1768128102597,0.002,3106.9,3106.5,7.37437769]
[1768128114343,0.002,3106.6,3106.5,4.15532088]
[1768128114507,0.002,3106.9,3106.5,7.37437769]
[1768128126548,0.002,3106.6,3106.5,4.15532088]
[1768128126753,0.002,3106.9,3106.5,7.37437769]
[1768128137763,0.002,3107.1,3106.5,7.37437769]
[1768128138270,0.002,3106.6,3106.5,4.15532088]
[1768128138455,0.002,3106.9,3106.5,7.37437769]
[1768128148762,0.002,3106.9,3106.6,0.9873669]
[1768128149794,0.002,3106.9,3106.7,3.21884958]
[1768128161327,0.002,3106.9,3106.7,6.43769916]
[1768128161512,0.002,3107.1,3106.7,6.43769916]
[1768128162416,0.002,3106.9,3106.7,6.43769916]
[1768128162616,0.002,3107.1,3106.7,6.43769916]
[1768128164222,0.002,3107.1,3106.5,6.43993212]
[1768128165722,0.002,3107.1,3106.5,7.37288374]
[1768128173828,0.002,3106.8,3106.5,7.37288374]
[1768128173995,0.002,3107.1,3106.7,6.43769916]
[1768128185412,0.002,3107.1,3106.8,0.001]
[1768128196134,0.90578935,3107.1,3106.8,0.001]
[1768128199769,0.002,3107.1,3106.8,0.001]
[1768128206286,0.002,3107.1,3106.5,4.38948038]
[1768128206287,0.90578935,3107.1,3106.5,0.0018185]
[1768128206871,0.90378935,3107.0,3106.5,0.0018185]
[1768128207073,1.1162644,3107.0,3106.5,0.0018185]
[1768128208579,1.1162644,3107.0,3106.8,0.001]
[1768128208778,0.002,3106.8,3106.5,0.0018185]
[1768128239103,0.002,3106.8,3106.2,0.001]
[1768128239104,0.93276104,3106.8,3106.2,0.001]
[1768128239268,0.93276104,3106.8,3105.6,0.93741244]
[1768128239269,0.93156352,3106.5,3105.6,0.93521714]
[1768128239473,0.93156352,3106.5,3105.7,0.93541244]
[1768128239967,0.93076104,3106.3,3105.4,0.93541244]
[1768128240705,4.15012875,3106.2,3105.4,0.93541244]
[1768128240903,4.15012875,3106.2,3105.3,0.001]
[1768128240904,0.93076104,3106.0,3105.3,0.001]
[1768128241999,0.93541244,3105.9,3105.3,0.001]
[1768128243497,0.93541244,3105.9,3105.7,0.001]
[1768128243674,1.85552793,3105.9,3105.3,0.001]
[1768128243873,0.93541244,3105.9,3105.3,0.94379769]
[1768128244094,0.41550418,3105.8,3105.3,0.94379769]
[1768128244420,0.41350418,3105.8,3105.3,0.001]
[1768128244898,0.96637498,3105.7,3105.3,0.001]
[1768128250784,0.96437498,3105.7,3105.3,0.001]
[1768128251007,0.45976641,3105.6,3105.3,0.001]
[1768128251574,1.4025641,3105.6,3105.3,0.001]
[1768128253410,0.45976641,3105.6,3105.3,0.001]
[1768128255479,1.3893469,3105.6,3104.9,0.001]
[1768128255882,0.46056921,3105.6,3104.9,0.92239039]
[1768128256415,3.68056761,3105.6,3104.9,0.92239039]
[1768128256912,0.46056921,3105.6,3104.9,0.92239039]
[1768128257314,0.40623703,3105.5,3104.9,0.92239039]
[1768128257518,0.40423703,3105.5,3105.1,0.92139039]